[Event "December 5 Early 2023"]
[Site "https://www.chess.com"]
[Date "2023.12.05"]
[Round "9"]
[White "Ginzburg, Yakov"]
[Black "Buscar, Michael"]
[Result "1-0"]
[Board "118"]
[TimeControl "180+1"]
[WhiteFideId "4157176"]
[BlackFideId "2603616"]
[WhiteElo "2555"]
[BlackElo "2346"]
[WhiteTeam "RUS"]
[BlackTeam "CAN"]
[WhiteClock "0:01:32"]
[BlackClock "0:00:00"]

1. Nf3 {[%clk 0:03:00]}  Nf6 {[%clk 0:02:42]} 2. c4 {[%clk 0:02:59]}  e6 {[%clk 0:02:40]} 3. g3 {[%clk 0:02:59]}  d5 {[%clk 0:02:40]} 4. d4 {[%clk 0:02:57]}  c5 {[%clk 0:02:40]} 5. Bg2 {[%clk 0:02:56]}  Nc6 {[%clk 0:02:39]} 6. O-O {[%clk 0:02:56]}  Be7 {[%clk 0:02:38]} 7. Nc3 {[%clk 0:02:56]}  O-O {[%clk 0:02:38]} 8. cxd5 {[%clk 0:02:55]}  exd5 {[%clk 0:02:39]} 9. dxc5 {[%clk 0:02:53]}  Bxc5 {[%clk 0:02:39]} 10. Qc2 {[%clk 0:02:52]}  Be7 {[%clk 0:02:39]} 11. Rd1 {[%clk 0:02:51]}  Be6 {[%clk 0:02:38]} 12. e4 {[%clk 0:02:42]}  Qa5 {[%clk 0:02:26]} 13. exd5 {[%clk 0:02:41]}  Nxd5 {[%clk 0:02:14]} 14. Nxd5 {[%clk 0:02:41]}  Bxd5 {[%clk 0:02:14]} 15. Rxd5 {[%clk 0:02:27]}  Qxd5 {[%clk 0:02:10]} 16. Ng5 {[%clk 0:02:27]}  Qxg5 {[%clk 0:01:56]} 17. Bxg5 {[%clk 0:02:26]}  Bxg5 {[%clk 0:01:57]} 18. Bxc6 {[%clk 0:02:23]}  bxc6 {[%clk 0:01:51]} 19. Qxc6 {[%clk 0:02:22]}  Bf6 {[%clk 0:01:50]} 20. Rb1 {[%clk 0:02:18]}  Rfc8 {[%clk 0:01:39]} 21. Qe4 {[%clk 0:02:17]}  Rab8 {[%clk 0:01:38]} 22. b4 {[%clk 0:02:13]}  Rd8 {[%clk 0:01:30]} 23. a3 {[%clk 0:01:56]}  Bd4 {[%clk 0:01:17]} 24. Kg2 {[%clk 0:01:52]}  Bb6 {[%clk 0:01:16]} 25. Re1 {[%clk 0:01:47]}  h6 {[%clk 0:01:00]} 26. Re2 {[%clk 0:01:45]}  Rd4 {[%clk 0:00:48]} 27. Qc6 {[%clk 0:01:44]}  Rdd8 {[%clk 0:00:40]} 28. a4 {[%clk 0:01:40]}  Bd4 {[%clk 0:00:29]} 29. a5 {[%clk 0:01:32]}  Rxb4 {[%clk 0:00:09]} 30. Re8+ {[%clk 0:01:31]}  Rxe8 {[%clk 0:00:09]} 31. Qxe8+ {[%clk 0:01:32]}  Kh7 {[%clk 0:00:10]} 32. Qxf7 {[%clk 0:01:32]}  Rb2 {[%clk 0:00:00]} 33. Qf5+ {[%clk 0:01:32]} 1-0

[Event "December 5 Early 2023"]
[Site "https://www.chess.com"]
[Date "2023.12.05"]
[Round "9"]
[White "Sharapov, Evgeny"]
[Black "De Arruda, Leandro Formes"]
[Result "1/2-1/2"]
[Board "119"]
[TimeControl "180+1"]
[WhiteFideId "14103133"]
[BlackFideId "22722009"]
[WhiteElo "2527"]
[BlackElo "2328"]
[WhiteTeam "UKR"]
[BlackTeam "BRA"]
[WhiteClock "0:02:16"]
[BlackClock "0:02:25"]

1. e4 {[%clk 0:03:00]}  e6 {[%clk 0:03:00]} 2. d4 {[%clk 0:02:59]}  d5 {[%clk 0:03:01]} 3. Nc3 {[%clk 0:03:00]}  dxe4 {[%clk 0:02:59]} 4. Nxe4 {[%clk 0:03:00]}  Nd7 {[%clk 0:03:00]} 5. Nf3 {[%clk 0:03:00]}  Ngf6 {[%clk 0:03:00]} 6. Nxf6+ {[%clk 0:03:00]}  Nxf6 {[%clk 0:03:01]} 7. Be3 {[%clk 0:03:00]}  Be7 {[%clk 0:03:02]} 8. Qd2 {[%clk 0:03:01]}  O-O {[%clk 0:03:03]} 9. O-O-O {[%clk 0:03:01]}  b6 {[%clk 0:03:02]} 10. Kb1 {[%clk 0:03:01]}  Bb7 {[%clk 0:03:02]} 11. Be2 {[%clk 0:03:01]}  a5 {[%clk 0:03:00]} 12. g4 {[%clk 0:03:02]}  Ne4 {[%clk 0:02:59]} 13. Qe1 {[%clk 0:02:59]}  a4 {[%clk 0:02:57]} 14. a3 {[%clk 0:02:52]}  b5 {[%clk 0:02:52]} 15. c3 {[%clk 0:02:49]}  Ng5 {[%clk 0:02:45]} 16. Bxg5 {[%clk 0:02:39]}  Bxg5 {[%clk 0:02:42]} 17. h4 {[%clk 0:02:39]}  Bf4 {[%clk 0:02:36]} 18. g5 {[%clk 0:02:36]}  Be4+ {[%clk 0:02:29]} 19. Ka1 {[%clk 0:02:33]}  Qd5 {[%clk 0:02:29]} 20. Rh3 {[%clk 0:02:29]}  Bf5 {[%clk 0:02:25]} 21. Rh1 {[%clk 0:02:23]}  Be4 {[%clk 0:02:24]} 22. Rh3 {[%clk 0:02:20]}  Bf5 {[%clk 0:02:24]} 23. Rh1 {[%clk 0:02:16]}  Be4 {[%clk 0:02:25]} 1/2-1/2

[Event "December 5 Early 2023"]
[Site "https://www.chess.com"]
[Date "2023.12.05"]
[Round "9"]
[White "Skibbe, Willi"]
[Black "Shinkarev, M"]
[Result "1-0"]
[Board "122"]
[TimeControl "180+1"]
[WhiteFideId "4682190"]
[BlackFideId "4145348"]
[WhiteElo "2314"]
[BlackElo "2486"]
[WhiteTeam "GER"]
[BlackTeam "RUS"]
[WhiteClock "0:01:28"]
[BlackClock "0:01:23"]

1. e4 {[%clk 0:03:00]}  e5 {[%clk 0:02:57]} 2. Nc3 {[%clk 0:02:54]}  Nf6 {[%clk 0:02:57]} 3. Bc4 {[%clk 0:02:50]}  Nxe4 {[%clk 0:02:57]} 4. Nxe4 {[%clk 0:02:50]}  d5 {[%clk 0:02:56]} 5. Qh5 {[%clk 0:02:43]}  dxc4 {[%clk 0:02:50]} 6. Qxe5+ {[%clk 0:02:43]}  Qe7 {[%clk 0:02:46]} 7. Nf3 {[%clk 0:02:40]}  Nc6 {[%clk 0:02:43]} 8. Qxe7+ {[%clk 0:02:37]}  Bxe7 {[%clk 0:02:44]} 9. O-O {[%clk 0:02:37]}  Bf5 {[%clk 0:02:41]} 10. Re1 {[%clk 0:02:33]}  O-O-O {[%clk 0:02:40]} 11. b3 {[%clk 0:02:31]}  cxb3 {[%clk 0:02:36]} 12. axb3 {[%clk 0:02:29]}  f6 {[%clk 0:02:33]} 13. d3 {[%clk 0:02:27]}  Bb4 {[%clk 0:02:31]} 14. Bd2 {[%clk 0:02:24]}  Bxd2 {[%clk 0:02:13]} 15. Nfxd2 {[%clk 0:02:16]}  Nb4 {[%clk 0:02:13]} 16. Rxa7 {[%clk 0:02:14]}  Nxc2 {[%clk 0:02:01]} 17. Rc1 {[%clk 0:02:12]}  Nb4 {[%clk 0:01:53]} 18. Nc5 {[%clk 0:02:04]}  Kb8 {[%clk 0:01:39]} 19. Rxb7+ {[%clk 0:02:02]}  Kc8 {[%clk 0:01:38]} 20. Rxb4 {[%clk 0:01:52]}  Bxd3 {[%clk 0:01:38]} 21. Nxd3 {[%clk 0:01:51]}  Rxd3 {[%clk 0:01:39]} 22. Nf1 {[%clk 0:01:50]}  Re8 {[%clk 0:01:36]} 23. Ne3 {[%clk 0:01:47]}  Kd7 {[%clk 0:01:33]} 24. Kf1 {[%clk 0:01:43]}  g6 {[%clk 0:01:32]} 25. Rd1 {[%clk 0:01:42]}  Rxe3 {[%clk 0:01:23]} 26. Rd4+ {[%clk 0:01:28]} 1-0

[Event "December 5 Early 2023"]
[Site "https://www.chess.com"]
[Date "2023.12.05"]
[Round "9"]
[White "Burmakin, Evgeniy"]
[Black "Shapiro, Daniel"]
[Result "1-0"]
[Board "124"]
[TimeControl "180+1"]
[WhiteFideId "4163729"]
[BlackFideId "2001780"]
[WhiteElo "2427"]
[BlackElo "2312"]
[WhiteTeam "RUS"]
[BlackTeam "USA"]
[WhiteClock "0:00:07"]
[BlackClock "0:00:00"]

1. e4 {[%clk 0:03:00]}  c5 {[%clk 0:02:59]} 2. Nc3 {[%clk 0:03:00]}  Nc6 {[%clk 0:02:58]} 3. Bb5 {[%clk 0:03:00]}  Nd4 {[%clk 0:02:57]} 4. Bc4 {[%clk 0:03:00]}  g6 {[%clk 0:02:57]} 5. Nf3 {[%clk 0:03:00]}  Bg7 {[%clk 0:02:57]} 6. Nxd4 {[%clk 0:03:00]}  cxd4 {[%clk 0:02:57]} 7. Qf3 {[%clk 0:03:00]}  e6 {[%clk 0:02:48]} 8. Nb5 {[%clk 0:02:59]}  d6 {[%clk 0:02:46]} 9. Qa3 {[%clk 0:02:57]}  Ke7 {[%clk 0:02:43]} 10. f4 {[%clk 0:02:38]}  a6 {[%clk 0:02:43]} 11. e5 {[%clk 0:02:20]}  axb5 {[%clk 0:02:39]} 12. exd6+ {[%clk 0:02:20]}  Kf6 {[%clk 0:02:11]} 13. Qxa8 {[%clk 0:02:14]}  bxc4 {[%clk 0:02:10]} 14. O-O {[%clk 0:02:04]}  Nh6 {[%clk 0:02:03]} 15. Qa3 {[%clk 0:01:45]}  Nf5 {[%clk 0:01:33]} 16. g4 {[%clk 0:01:44]}  Nxd6 {[%clk 0:01:31]} 17. d3 {[%clk 0:01:33]}  Bf8 {[%clk 0:01:08]} 18. Qc5 {[%clk 0:01:24]}  Ke7 {[%clk 0:00:48]} 19. f5 {[%clk 0:01:23]}  exf5 {[%clk 0:00:44]} 20. Bg5+ {[%clk 0:01:19]}  f6 {[%clk 0:00:38]} 21. Qxd4 {[%clk 0:01:04]}  Bg7 {[%clk 0:00:32]} 22. Bf4 {[%clk 0:00:57]}  Be6 {[%clk 0:00:13]} 23. Rae1 {[%clk 0:00:53]}  Qd7 {[%clk 0:00:14]} 24. gxf5 {[%clk 0:00:38]}  gxf5 {[%clk 0:00:13]} 25. Re2 {[%clk 0:00:33]}  Nb5 {[%clk 0:00:13]} 26. Qxc4 {[%clk 0:00:31]}  Kf7 {[%clk 0:00:12]} 27. Rxe6 {[%clk 0:00:29]}  Qxe6 {[%clk 0:00:12]} 28. Qxb5 {[%clk 0:00:30]}  Rg8 {[%clk 0:00:12]} 29. Kh1 {[%clk 0:00:27]}  Bf8 {[%clk 0:00:11]} 30. Qxb7+ {[%clk 0:00:24]}  Be7 {[%clk 0:00:11]} 31. Qf3 {[%clk 0:00:23]}  Qxa2 {[%clk 0:00:10]} 32. Bc1 {[%clk 0:00:16]}  Qe6 {[%clk 0:00:08]} 33. Qxf5 {[%clk 0:00:14]}  Qe2 {[%clk 0:00:07]} 34. Qd5+ {[%clk 0:00:12]}  Kf8 {[%clk 0:00:07]} 35. Qa8+ {[%clk 0:00:11]}  Kf7 {[%clk 0:00:07]} 36. Qf3 {[%clk 0:00:10]}  Qe5 {[%clk 0:00:06]} 37. c3 {[%clk 0:00:10]}  Qe6 {[%clk 0:00:06]} 38. d4 {[%clk 0:00:10]}  Bd6 {[%clk 0:00:06]} 39. c4 {[%clk 0:00:09]}  f5 {[%clk 0:00:06]} 40. c5 {[%clk 0:00:08]}  Be7 {[%clk 0:00:05]} 41. d5 {[%clk 0:00:08]}  Qe5 {[%clk 0:00:05]} 42. d6 {[%clk 0:00:07]}  Bd8 {[%clk 0:00:05]} 43. Qxf5+ {[%clk 0:00:07]}  Qxf5 {[%clk 0:00:04]} 44. Rxf5+ {[%clk 0:00:08]}  Ke6 {[%clk 0:00:05]} 45. Rf3 {[%clk 0:00:08]}  Kd5 {[%clk 0:00:05]} 46. b4 {[%clk 0:00:08]}  Rg4 {[%clk 0:00:03]} 47. Bd2 {[%clk 0:00:07]}  Rd4 {[%clk 0:00:03]} 48. Rf2 {[%clk 0:00:07]}  Kc6 {[%clk 0:00:02]} 49. Kg2 {[%clk 0:00:07]}  Bh4 {[%clk 0:00:00]} 50. Re2 {[%clk 0:00:07]} 1-0

[Event "December 5 Early 2023"]
[Site "https://www.chess.com"]
[Date "2023.12.05"]
[Round "9"]
[White "Can, Melih Kaan"]
[Black "Rodriguez Santiago, Jaime"]
[Result "0-1"]
[Board "125"]
[TimeControl "180+1"]
[WhiteFideId "6317383"]
[BlackFideId "3100898"]
[WhiteElo "2426"]
[BlackElo "2279"]
[WhiteTeam "TUR"]
[BlackTeam "PUR"]
[WhiteClock "0:00:02"]
[BlackClock "0:01:21"]

1. e4 {[%clk 0:02:59]}  c6 {[%clk 0:02:57]} 2. d4 {[%clk 0:02:56]}  d5 {[%clk 0:02:58]} 3. exd5 {[%clk 0:02:56]}  cxd5 {[%clk 0:02:57]} 4. Bd3 {[%clk 0:02:57]}  Nc6 {[%clk 0:02:57]} 5. c3 {[%clk 0:02:56]}  Qc7 {[%clk 0:02:58]} 6. Ne2 {[%clk 0:02:55]}  Bg4 {[%clk 0:02:58]} 7. f3 {[%clk 0:02:55]}  Bh5 {[%clk 0:02:57]} 8. Bf4 {[%clk 0:02:55]}  Qd7 {[%clk 0:02:57]} 9. O-O {[%clk 0:02:49]}  Nf6 {[%clk 0:02:55]} 10. Qb3 {[%clk 0:02:44]}  e6 {[%clk 0:02:54]} 11. Nd2 {[%clk 0:02:41]}  Be7 {[%clk 0:02:52]} 12. Bg3 {[%clk 0:02:39]}  O-O {[%clk 0:02:50]} 13. Nf4 {[%clk 0:02:36]}  Bg6 {[%clk 0:02:50]} 14. Nxg6 {[%clk 0:02:36]}  hxg6 {[%clk 0:02:50]} 15. Rae1 {[%clk 0:02:34]}  Nh5 {[%clk 0:02:47]} 16. f4 {[%clk 0:02:11]}  Nxg3 {[%clk 0:02:45]} 17. hxg3 {[%clk 0:02:12]}  Bd6 {[%clk 0:02:35]} 18. Nf3 {[%clk 0:02:11]}  a6 {[%clk 0:02:25]} 19. Ng5 {[%clk 0:01:51]}  b5 {[%clk 0:02:16]} 20. g4 {[%clk 0:01:51]}  Be7 {[%clk 0:02:10]} 21. Nf3 {[%clk 0:01:37]}  Rac8 {[%clk 0:02:02]} 22. Ne5 {[%clk 0:01:32]}  Nxe5 {[%clk 0:02:00]} 23. Rxe5 {[%clk 0:01:28]}  Bf6 {[%clk 0:01:55]} 24. Re3 {[%clk 0:01:23]}  g5 {[%clk 0:01:53]} 25. Rh3 {[%clk 0:01:07]}  g6 {[%clk 0:01:49]} 26. f5 {[%clk 0:01:05]}  exf5 {[%clk 0:01:47]} 27. gxf5 {[%clk 0:01:06]}  Kg7 {[%clk 0:01:46]} 28. Qc2 {[%clk 0:01:00]}  g4 {[%clk 0:01:38]} 29. fxg6 {[%clk 0:00:15]}  gxh3 {[%clk 0:01:36]} 30. gxf7 {[%clk 0:00:16]}  Bxd4+ {[%clk 0:01:35]} 31. Kh1 {[%clk 0:00:13]}  Qg4 {[%clk 0:01:24]} 32. Bf5 {[%clk 0:00:03]}  hxg2+ {[%clk 0:01:23]} 33. Qxg2 {[%clk 0:00:03]}  Rh8+ {[%clk 0:01:23]} 34. Qh2 {[%clk 0:00:02]}  Rxh2+ {[%clk 0:01:21]} 35. Kxh2 {[%clk 0:00:03]}  Rh8+ {[%clk 0:01:20]} 36. Bh7 {[%clk 0:00:02]}  Rxh7# {[%clk 0:01:21]} 0-1

[Event "December 5 Early 2023"]
[Site "https://www.chess.com"]
[Date "2023.12.05"]
[Round "9"]
[White "Topalov, Aleksandar"]
[Black "Dyulgerov, Volen"]
[Result "1-0"]
[Board "126"]
[TimeControl "180+1"]
[WhiteFideId "925659"]
[BlackFideId "2918978"]
[WhiteElo "2423"]
[BlackElo "2257"]
[WhiteTeam "SRB"]
[BlackTeam "BUL"]
[WhiteClock "0:00:13"]
[BlackClock "0:00:00"]

1. b3 {[%clk 0:03:00]}  a5 {[%clk 0:02:59]} 2. a3 {[%clk 0:03:00]}  c5 {[%clk 0:02:55]} 3. c4 {[%clk 0:02:51]}  a4 {[%clk 0:02:53]} 4. bxa4 {[%clk 0:02:50]}  Nf6 {[%clk 0:02:29]} 5. Nc3 {[%clk 0:02:49]}  d5 {[%clk 0:02:25]} 6. cxd5 {[%clk 0:02:42]}  Nxd5 {[%clk 0:02:25]} 7. Bb2 {[%clk 0:02:42]}  Ra6 {[%clk 0:02:14]} 8. e3 {[%clk 0:02:39]}  Rg6 {[%clk 0:02:12]} 9. Qb3 {[%clk 0:02:28]}  e6 {[%clk 0:01:59]} 10. Nf3 {[%clk 0:02:25]}  Nc6 {[%clk 0:01:58]} 11. g3 {[%clk 0:02:16]}  Bd6 {[%clk 0:01:36]} 12. Bg2 {[%clk 0:02:02]}  Na5 {[%clk 0:01:27]} 13. Qc2 {[%clk 0:01:54]}  c4 {[%clk 0:01:24]} 14. O-O {[%clk 0:01:43]}  Nb3 {[%clk 0:01:23]} 15. Rad1 {[%clk 0:01:41]}  Nc5 {[%clk 0:01:19]} 16. Nd4 {[%clk 0:01:21]}  Nxc3 {[%clk 0:01:08]} 17. Bxc3 {[%clk 0:01:19]}  Nd3 {[%clk 0:01:08]} 18. Rb1 {[%clk 0:01:12]}  e5 {[%clk 0:01:04]} 19. Nb5 {[%clk 0:01:07]}  Bf5 {[%clk 0:01:03]} 20. e4 {[%clk 0:00:57]}  Bg4 {[%clk 0:00:50]} 21. Nxd6+ {[%clk 0:00:56]}  Qxd6 {[%clk 0:00:47]} 22. Bb4 {[%clk 0:00:56]}  Qd4 {[%clk 0:00:40]} 23. Bc3 {[%clk 0:00:50]}  Qa7 {[%clk 0:00:31]} 24. Qa2 {[%clk 0:00:43]}  Rc6 {[%clk 0:00:13]} 25. Rb4 {[%clk 0:00:43]}  Nxb4 {[%clk 0:00:12]} 26. Bxb4 {[%clk 0:00:43]}  Be2 {[%clk 0:00:12]} 27. Re1 {[%clk 0:00:37]}  Bd3 {[%clk 0:00:12]} 28. Bf1 {[%clk 0:00:36]}  h5 {[%clk 0:00:11]} 29. Bxd3 {[%clk 0:00:34]}  cxd3 {[%clk 0:00:12]} 30. Qd5 {[%clk 0:00:33]}  Qd4 {[%clk 0:00:11]} 31. Qa5 {[%clk 0:00:28]}  h4 {[%clk 0:00:05]} 32. Qa8+ {[%clk 0:00:24]}  Qd8 {[%clk 0:00:05]} 33. Qxb7 {[%clk 0:00:24]}  Rf6 {[%clk 0:00:01]} 34. Qb5+ {[%clk 0:00:19]}  Qd7 {[%clk 0:00:02]} 35. Re3 {[%clk 0:00:17]}  hxg3 {[%clk 0:00:01]} 36. hxg3 {[%clk 0:00:16]}  Rc6 {[%clk 0:00:01]} 37. Rxd3 {[%clk 0:00:13]}  Rc1+ {[%clk 0:00:00]} 38. Kg2 {[%clk 0:00:13]} 1-0

[Event "December 5 Early 2023"]
[Site "https://www.chess.com"]
[Date "2023.12.05"]
[Round "9"]
[White "Balla, Tamas-Kristof"]
[Black "Player, Edmund C"]
[Result "1-0"]
[Board "128"]
[TimeControl "180+1"]
[WhiteFideId "1208497"]
[BlackFideId "406520"]
[WhiteElo "2412"]
[BlackElo "2243"]
[WhiteTeam "ROU"]
[BlackTeam "ENG"]
[WhiteClock "0:00:16"]
[BlackClock "0:00:03"]

1. e4 {[%clk 0:03:00]}  Nf6 {[%clk 0:02:58]} 2. e5 {[%clk 0:03:00]}  Nd5 {[%clk 0:02:59]} 3. c4 {[%clk 0:03:01]}  Nb6 {[%clk 0:02:59]} 4. d4 {[%clk 0:03:00]}  d6 {[%clk 0:02:59]} 5. f4 {[%clk 0:03:00]}  Nc6 {[%clk 0:02:55]} 6. Be3 {[%clk 0:02:59]}  dxe5 {[%clk 0:02:52]} 7. fxe5 {[%clk 0:03:00]}  Bf5 {[%clk 0:02:52]} 8. Nc3 {[%clk 0:02:59]}  e6 {[%clk 0:02:52]} 9. Nf3 {[%clk 0:02:58]}  Be7 {[%clk 0:02:49]} 10. Be2 {[%clk 0:02:57]}  Qd7 {[%clk 0:02:39]} 11. O-O {[%clk 0:02:54]}  O-O {[%clk 0:02:37]} 12. Kh1 {[%clk 0:02:39]}  f6 {[%clk 0:02:36]} 13. exf6 {[%clk 0:02:29]}  Bxf6 {[%clk 0:02:37]} 14. Qd2 {[%clk 0:02:22]}  Rad8 {[%clk 0:02:31]} 15. Rad1 {[%clk 0:02:21]}  Bg4 {[%clk 0:02:27]} 16. d5 {[%clk 0:01:58]}  Bxf3 {[%clk 0:01:45]} 17. Bxf3 {[%clk 0:01:33]}  Nxc4 {[%clk 0:01:35]} 18. dxc6 {[%clk 0:00:48]}  Qxd2 {[%clk 0:01:04]} 19. Bxd2 {[%clk 0:00:43]}  Nxd2 {[%clk 0:00:46]} 20. cxb7 {[%clk 0:00:16]}  Nxf3 {[%clk 0:00:25]} 21. gxf3 {[%clk 0:00:17]}  Rb8 {[%clk 0:00:21]} 22. Ne4 {[%clk 0:00:14]}  Rxb7 {[%clk 0:00:16]} 23. b3 {[%clk 0:00:14]}  Be5 {[%clk 0:00:14]} 24. Rd7 {[%clk 0:00:14]}  Rf7 {[%clk 0:00:11]} 25. Rd8+ {[%clk 0:00:14]}  Rf8 {[%clk 0:00:12]} 26. Rd7 {[%clk 0:00:14]}  Rf7 {[%clk 0:00:05]} 27. Rd3 {[%clk 0:00:15]}  h6 {[%clk 0:00:05]} 28. Re1 {[%clk 0:00:15]}  Bf4 {[%clk 0:00:04]} 29. Nc5 {[%clk 0:00:14]}  Rb6 {[%clk 0:00:04]} 30. Nxe6 {[%clk 0:00:15]}  Re7 {[%clk 0:00:03]} 31. Rd8+ {[%clk 0:00:15]}  Kf7 {[%clk 0:00:03]} 32. Rf8+ {[%clk 0:00:14]}  Kg6 {[%clk 0:00:02]} 33. Nxf4+ {[%clk 0:00:15]}  Kg5 {[%clk 0:00:02]} 34. Rxe7 {[%clk 0:00:16]}  Rf6 {[%clk 0:00:02]} 35. Rxg7+ {[%clk 0:00:16]}  Kxf4 {[%clk 0:00:02]} 36. Rxf6+ {[%clk 0:00:16]}  Ke3 {[%clk 0:00:03]} 37. Rxh6 {[%clk 0:00:16]}  Kf2 {[%clk 0:00:03]} 38. Rg2+ {[%clk 0:00:16]}  Kf1 {[%clk 0:00:03]} 39. Rc6 {[%clk 0:00:15]}  a5 {[%clk 0:00:03]} 40. Rc1# {[%clk 0:00:16]} 1-0

[Event "December 5 Early 2023"]
[Site "https://www.chess.com"]
[Date "2023.12.05"]
[Round "9"]
[White "Rodriguez Avila, Alvaro"]
[Black "Marchesich, Giovanni"]
[Result "0-1"]
[Board "129"]
[TimeControl "180+1"]
[WhiteFideId "24570249"]
[BlackFideId "2824790"]
[WhiteElo "2237"]
[BlackElo "2403"]
[WhiteTeam "ESP"]
[BlackTeam "ITA"]
[WhiteClock "0:00:00"]
[BlackClock "0:00:28"]

1. e4 {[%clk 0:03:00]}  e5 {[%clk 0:03:00]} 2. Nf3 {[%clk 0:02:55]}  Nc6 {[%clk 0:03:00]} 3. Bb5 {[%clk 0:02:56]}  a6 {[%clk 0:03:00]} 4. Ba4 {[%clk 0:02:48]}  Bc5 {[%clk 0:02:59]} 5. c3 {[%clk 0:02:43]}  Nge7 {[%clk 0:02:58]} 6. d4 {[%clk 0:02:42]}  exd4 {[%clk 0:02:59]} 7. cxd4 {[%clk 0:02:39]}  Bb4+ {[%clk 0:02:59]} 8. Nc3 {[%clk 0:02:39]}  d5 {[%clk 0:02:59]} 9. exd5 {[%clk 0:02:38]}  Nxd5 {[%clk 0:02:58]} 10. O-O {[%clk 0:02:29]}  O-O {[%clk 0:02:50]} 11. Nxd5 {[%clk 0:02:21]}  Qxd5 {[%clk 0:02:48]} 12. Bb3 {[%clk 0:02:22]}  Qh5 {[%clk 0:02:42]} 13. h3 {[%clk 0:02:09]}  Bd6 {[%clk 0:02:24]} 14. Re1 {[%clk 0:01:55]}  Bd7 {[%clk 0:02:06]} 15. Be3 {[%clk 0:01:43]}  Rae8 {[%clk 0:02:04]} 16. Rc1 {[%clk 0:01:27]}  Ne7 {[%clk 0:01:56]} 17. Ne5 {[%clk 0:01:23]}  Qxd1 {[%clk 0:01:45]} 18. Rexd1 {[%clk 0:01:24]}  Bf5 {[%clk 0:01:34]} 19. Bf4 {[%clk 0:01:23]}  Rd8 {[%clk 0:01:27]} 20. Bg3 {[%clk 0:01:16]}  Be4 {[%clk 0:01:14]} 21. Re1 {[%clk 0:01:14]}  Bd5 {[%clk 0:01:13]} 22. Bxd5 {[%clk 0:00:58]}  Nxd5 {[%clk 0:01:14]} 23. a3 {[%clk 0:00:58]}  Rfe8 {[%clk 0:01:02]} 24. Kh2 {[%clk 0:00:51]}  f6 {[%clk 0:01:02]} 25. Nf3 {[%clk 0:00:50]}  Bxg3+ {[%clk 0:00:51]} 26. Kxg3 {[%clk 0:00:51]}  c6 {[%clk 0:00:50]} 27. Nd2 {[%clk 0:00:33]}  Kf7 {[%clk 0:00:32]} 28. Nc4 {[%clk 0:00:27]}  Rxe1 {[%clk 0:00:27]} 29. Rxe1 {[%clk 0:00:18]}  Ne7 {[%clk 0:00:28]} 30. Rd1 {[%clk 0:00:12]}  Rxd4 {[%clk 0:00:28]} 31. Re1 {[%clk 0:00:12]}  Nf5+ {[%clk 0:00:28]} 32. Kh2 {[%clk 0:00:00]}  Rxc4 {[%clk 0:00:28]} 0-1

[Event "December 5 Early 2023"]
[Site "https://www.chess.com"]
[Date "2023.12.05"]
[Round "9"]
[White "Marcziter, Dmitrii"]
[Black "Chemin, Justo Reinaldo"]
[Result "1-0"]
[Board "130"]
[TimeControl "180+1"]
[WhiteFideId "13900765"]
[BlackFideId "2101580"]
[WhiteElo "2380"]
[BlackElo "2231"]
[WhiteTeam "GER"]
[BlackTeam "BRA"]
[WhiteClock "0:01:54"]
[BlackClock "0:00:23"]

1. d4 {[%clk 0:03:00]}  d5 {[%clk 0:02:58]} 2. c4 {[%clk 0:03:00]}  e6 {[%clk 0:02:59]} 3. Nc3 {[%clk 0:02:59]}  c6 {[%clk 0:02:59]} 4. e3 {[%clk 0:02:57]}  Nf6 {[%clk 0:02:58]} 5. Nf3 {[%clk 0:02:56]}  Nbd7 {[%clk 0:02:59]} 6. Qc2 {[%clk 0:02:56]}  dxc4 {[%clk 0:02:56]} 7. Bxc4 {[%clk 0:02:55]}  b5 {[%clk 0:02:55]} 8. Be2 {[%clk 0:02:54]}  a6 {[%clk 0:02:56]} 9. O-O {[%clk 0:02:54]}  c5 {[%clk 0:02:56]} 10. a3 {[%clk 0:02:52]}  Bb7 {[%clk 0:02:56]} 11. Rd1 {[%clk 0:02:50]}  Qc7 {[%clk 0:02:43]} 12. a4 {[%clk 0:02:40]}  b4 {[%clk 0:02:41]} 13. Nb1 {[%clk 0:02:37]}  Rc8 {[%clk 0:02:35]} 14. Nbd2 {[%clk 0:02:29]}  cxd4 {[%clk 0:02:24]} 15. Qxc7 {[%clk 0:02:28]}  Rxc7 {[%clk 0:02:25]} 16. Nxd4 {[%clk 0:02:27]}  Be7 {[%clk 0:02:12]} 17. N2b3 {[%clk 0:02:25]}  O-O {[%clk 0:02:02]} 18. Bd2 {[%clk 0:02:23]}  Ne4 {[%clk 0:01:55]} 19. Be1 {[%clk 0:02:22]}  Rfc8 {[%clk 0:01:42]} 20. f3 {[%clk 0:02:20]}  Nec5 {[%clk 0:01:37]} 21. Na5 {[%clk 0:02:18]}  Nf6 {[%clk 0:01:01]} 22. e4 {[%clk 0:02:13]}  Ncd7 {[%clk 0:00:52]} 23. Nxb7 {[%clk 0:02:09]}  Rxb7 {[%clk 0:00:51]} 24. Bxa6 {[%clk 0:02:09]}  Rbc7 {[%clk 0:00:51]} 25. Bxc8 {[%clk 0:02:09]}  Rxc8 {[%clk 0:00:51]} 26. Bf2 {[%clk 0:02:07]}  Nc5 {[%clk 0:00:42]} 27. Rdc1 {[%clk 0:02:03]}  Ra8 {[%clk 0:00:32]} 28. Nc6 {[%clk 0:02:00]}  Bf8 {[%clk 0:00:23]} 29. Bxc5 {[%clk 0:01:54]} 1-0

[Event "December 5 Early 2023"]
[Site "https://www.chess.com"]
[Date "2023.12.05"]
[Round "9"]
[White "Seder, Mohammed"]
[Black "Michalski, Olaf"]
[Result "1-0"]
[Board "132"]
[TimeControl "180+1"]
[WhiteFideId "11505567"]
[BlackFideId "1106740"]
[WhiteElo "2359"]
[BlackElo "2206"]
[WhiteTeam "PLE"]
[BlackTeam "POL"]
[WhiteClock "0:01:14"]
[BlackClock "0:00:07"]

1. b3 {[%clk 0:03:00]}  d6 {[%clk 0:02:55]} 2. Bb2 {[%clk 0:03:01]}  e5 {[%clk 0:02:55]} 3. e3 {[%clk 0:03:02]}  f5 {[%clk 0:02:55]} 4. d4 {[%clk 0:03:00]}  exd4 {[%clk 0:02:47]} 5. Bc4 {[%clk 0:02:41]}  d5 {[%clk 0:02:39]} 6. Bd3 {[%clk 0:02:29]}  dxe3 {[%clk 0:02:23]} 7. Qh5+ {[%clk 0:02:28]}  g6 {[%clk 0:02:15]} 8. Qe2 {[%clk 0:02:27]}  Nf6 {[%clk 0:02:08]} 9. Qxe3+ {[%clk 0:02:26]}  Kf7 {[%clk 0:02:08]} 10. Nf3 {[%clk 0:02:24]}  Bb4+ {[%clk 0:02:00]} 11. c3 {[%clk 0:02:14]}  Bd6 {[%clk 0:01:33]} 12. O-O {[%clk 0:02:09]}  Re8 {[%clk 0:01:20]} 13. Qh6 {[%clk 0:02:06]}  Kg8 {[%clk 0:01:20]} 14. c4 {[%clk 0:02:02]}  Qe7 {[%clk 0:01:00]} 15. Nbd2 {[%clk 0:01:40]}  Ng4 {[%clk 0:00:36]} 16. Qh3 {[%clk 0:01:33]}  f4 {[%clk 0:00:24]} 17. Rae1 {[%clk 0:01:28]}  Qf7 {[%clk 0:00:07]} 18. Ng5 {[%clk 0:01:14]} 1-0